[Event "Late-Titled-Tuesday-Blitz-March-12-2024"]
[Site "Chess.com"]
[Date "2024.03.12"]
[Round "4"]
[White "Meri-Arabidze"]
[Black "Koalaskakistis"]
[Result "1-0"]
[WhiteElo "2713"]
[BlackElo "2539"]
[TimeControl "180+1"]
[EndTime "14:38:36 PDT"]
[Termination "Meri-Arabidze won by resignation"]

1. d4 {[%clk 0:03:00.9]} 1... Nf6 {[%clk 0:02:58.5]} 2. c4 {[%clk 0:03:01.5]}
2... g6 {[%clk 0:02:58.8]} 3. g3 {[%clk 0:03:01.3]} 3... Bg7 {[%clk 0:02:59.1]}
4. Bg2 {[%clk 0:03:02]} 4... O-O {[%clk 0:03:00]} 5. Nc3 {[%clk 0:03:02.5]} 5...
d6 {[%clk 0:03:00.3]} 6. Nf3 {[%clk 0:03:02.7]} 6... Nbd7 {[%clk 0:02:35.4]} 7.
O-O {[%clk 0:03:02.5]} 7... e5 {[%clk 0:02:35.5]} 8. e4 {[%clk 0:03:03]} 8...
exd4 {[%clk 0:02:30.3]} 9. Nxd4 {[%clk 0:03:03.9]} 9... Re8 {[%clk 0:02:29.7]}
10. f3 {[%clk 0:03:03.5]} 10... Nc5 {[%clk 0:02:29.2]} 11. Be3 {[%clk
0:03:00.9]} 11... c6 {[%clk 0:02:22.4]} 12. Qc2 {[%clk 0:02:59.4]} 12... Qc7
{[%clk 0:02:22]} 13. Rad1 {[%clk 0:02:59]} 13... a5 {[%clk 0:02:18.8]} 14. b3
{[%clk 0:02:59.3]} 14... Nfd7 {[%clk 0:02:16.9]} 15. Rfe1 {[%clk 0:02:57.9]}
15... Ne5 {[%clk 0:02:11.9]} 16. h3 {[%clk 0:02:57.9]} 16... h5 {[%clk 0:02:07]}
17. f4 {[%clk 0:02:57.7]} 17... Ned7 {[%clk 0:02:07.3]} 18. Bf2 {[%clk
0:02:37.1]} 18... Bh6 {[%clk 0:01:57.4]} 19. Nf3 {[%clk 0:02:33.6]} 19... Nf6
{[%clk 0:01:53.1]} 20. e5 {[%clk 0:02:32.8]} 20... dxe5 {[%clk 0:01:41.2]} 21.
Bxc5 {[%clk 0:02:32.5]} 21... exf4 {[%clk 0:01:41.7]} 22. Rxe8+ {[%clk
0:02:21.6]} 22... Nxe8 {[%clk 0:01:42.6]} 23. gxf4 {[%clk 0:02:16.8]} 23... Bxf4
{[%clk 0:01:37.9]} 24. Bd4 {[%clk 0:02:07.1]} 24... Bf5 {[%clk 0:01:36.5]} 25.
Qe2 {[%clk 0:02:04.3]} 25... Ng7 {[%clk 0:01:06.4]} 26. Be5 {[%clk 0:02:00.2]}
26... Qb6+ {[%clk 0:01:05.5]} 27. Bd4 {[%clk 0:01:48.3]} 27... Qb4 {[%clk
0:01:00.3]} 28. Ne4 {[%clk 0:01:34.1]} 28... Bxe4 {[%clk 0:00:27.8]} 29. Qxe4
{[%clk 0:01:35]} 29... Bg3 {[%clk 0:00:26.7]} 30. Bxg7 {[%clk 0:01:11.9]} 30...
Kxg7 {[%clk 0:00:26.2]} 31. Rf1 {[%clk 0:01:05.9]} 31... Rd8 {[%clk 0:00:23.2]}
32. Kh1 {[%clk 0:01:03]} 32... Qc5 {[%clk 0:00:22]} 33. Qe2 {[%clk 0:00:40.6]}
33... Rd7 {[%clk 0:00:20.4]} 34. Qb2+ {[%clk 0:00:40.4]} 34... Kg8 {[%clk
0:00:17.8]} 35. Qf6 {[%clk 0:00:40.1]} 35... Rd6 {[%clk 0:00:09.9]} 36. Qe7
{[%clk 0:00:35.9]} 36... Bf4 {[%clk 0:00:10]} 37. Qe4 {[%clk 0:00:26.4]} 37...
Bg3 {[%clk 0:00:08]} 38. Qe8+ {[%clk 0:00:24.8]} 38... Kg7 {[%clk 0:00:06.6]}
39. Qe7 {[%clk 0:00:23.2]} 39... Bf4 {[%clk 0:00:06.5]} 40. Qe1 {[%clk
0:00:19.8]} 40... Re6 {[%clk 0:00:06.4]} 41. Qc3+ {[%clk 0:00:19.7]} 41... Kh7
{[%clk 0:00:05.7]} 42. Nd4 {[%clk 0:00:19.5]} 42... Rf6 {[%clk 0:00:04.2]} 43.
Ne2 {[%clk 0:00:18.5]} 43... Be5 {[%clk 0:00:04.3]} 44. Qc1 {[%clk 0:00:16.6]}
44... Rxf1+ {[%clk 0:00:05.2]} 45. Qxf1 {[%clk 0:00:17.2]} 45... Kg7 {[%clk
0:00:05.5]} 46. Ng1 {[%clk 0:00:16]} 46... Qe3 {[%clk 0:00:05.7]} 47. Nf3 {[%clk
0:00:16.3]} 47... Bf6 {[%clk 0:00:06.6]} 48. Qe1 {[%clk 0:00:15.7]} 48... Qf4
{[%clk 0:00:05.5]} 49. Qd2 {[%clk 0:00:16.1]} 49... Qf5 {[%clk 0:00:05.5]} 50.
Kg1 {[%clk 0:00:14.1]} 50... g5 {[%clk 0:00:05.3]} 51. Ne1 {[%clk 0:00:08.3]}
51... g4 {[%clk 0:00:05.4]} 52. hxg4 {[%clk 0:00:08.5]} 52... hxg4 {[%clk
0:00:06.3]} 53. Qf2 {[%clk 0:00:07.8]} 53... Qd7 {[%clk 0:00:05.5]} 54. Nc2
{[%clk 0:00:07.4]} 54... Qd1+ {[%clk 0:00:04.8]} 55. Bf1 {[%clk 0:00:06.7]}
55... Bg5 {[%clk 0:00:04]} 56. Qe2 {[%clk 0:00:05.6]} 56... Qd6 {[%clk
0:00:03.8]} 57. Qxg4 {[%clk 0:00:05.2]} 57... Qe6 {[%clk 0:00:04.4]} 58. Qxg5+
{[%clk 0:00:05.1]} 1-0

[Event "Late-Titled-Tuesday-Blitz-March-12-2024"]
[Site "Chess.com"]
[Date "2024.03.12"]
[Round "4"]
[White "David_ATM"]
[Black "Payyappat"]
[Result "0-1"]
[WhiteElo "2380"]
[BlackElo "2559"]
[TimeControl "180+1"]
[EndTime "14:38:38 PDT"]
[Termination "Payyappat won on time"]

1. e4 {[%clk 0:03:00.9]} 1... c6 {[%clk 0:02:52.3]} 2. Nc3 {[%clk 0:03:00.6]}
2... d5 {[%clk 0:02:53.2]} 3. Nf3 {[%clk 0:03:01.3]} 3... dxe4 {[%clk
0:02:53.3]} 4. Nxe4 {[%clk 0:03:02.2]} 4... f6 {[%clk 0:02:53.6]} 5. Bc4 {[%clk
0:02:57.1]} 5... Nd7 {[%clk 0:02:49]} 6. O-O {[%clk 0:02:52.2]} 6... Nb6 {[%clk
0:02:47.8]} 7. Bb3 {[%clk 0:02:52]} 7... Bg4 {[%clk 0:02:40.5]} 8. h3 {[%clk
0:02:50.9]} 8... Bxf3 {[%clk 0:02:35.1]} 9. Qxf3 {[%clk 0:02:51.8]} 9... Nh6
{[%clk 0:02:25.9]} 10. Re1 {[%clk 0:02:47.2]} 10... Nd5 {[%clk 0:02:07]} 11. Nc5
{[%clk 0:02:27.2]} 11... Nf7 {[%clk 0:01:41.5]} 12. Ne6 {[%clk 0:02:21]} 12...
Qd7 {[%clk 0:01:36.2]} 13. Bxd5 {[%clk 0:02:20.8]} 13... cxd5 {[%clk 0:01:35.1]}
14. Qxd5 {[%clk 0:02:21.1]} 14... Qxd5 {[%clk 0:01:35.7]} 15. Nc7+ {[%clk
0:02:21.5]} 15... Kd7 {[%clk 0:01:36.2]} 16. Nxd5 {[%clk 0:02:22.4]} 16... Rc8
{[%clk 0:01:36.4]} 17. c3 {[%clk 0:02:11.3]} 17... e6 {[%clk 0:01:34.5]} 18. Ne3
{[%clk 0:02:10.3]} 18... b5 {[%clk 0:01:20.8]} 19. a3 {[%clk 0:02:07.5]} 19...
a5 {[%clk 0:01:15.8]} 20. d4 {[%clk 0:02:07.6]} 20... a4 {[%clk 0:01:15.3]} 21.
Nf1 {[%clk 0:01:50.4]} 21... Bd6 {[%clk 0:01:05.8]} 22. Be3 {[%clk 0:01:50.3]}
22... h5 {[%clk 0:00:53]} 23. f3 {[%clk 0:01:50.4]} 23... g5 {[%clk 0:00:51.2]}
24. Bf2 {[%clk 0:01:49.7]} 24... f5 {[%clk 0:00:50.3]} 25. Re2 {[%clk
0:01:49.1]} 25... g4 {[%clk 0:00:50]} 26. Rae1 {[%clk 0:01:33.9]} 26... Rh6
{[%clk 0:00:48.8]} 27. fxg4 {[%clk 0:01:26.5]} 27... hxg4 {[%clk 0:00:47.3]} 28.
hxg4 {[%clk 0:01:16.6]} 28... f4 {[%clk 0:00:19]} 29. g3 {[%clk 0:01:03]} 29...
f3 {[%clk 0:00:17.7]} 30. Rc2 {[%clk 0:00:17.3]} 30... Rch8 {[%clk 0:00:16.8]}
31. Be3 {[%clk 0:00:17.9]} 31... Rh1+ {[%clk 0:00:15.7]} 32. Kf2 {[%clk
0:00:18.3]} 32... R8h2+ {[%clk 0:00:16.2]} 33. Nxh2 {[%clk 0:00:18.7]} 33...
Rxh2+ {[%clk 0:00:17.1]} 34. Kxf3 {[%clk 0:00:19.3]} 34... Rxc2 {[%clk
0:00:17.5]} 35. Rh1 {[%clk 0:00:17.9]} 35... Rxb2 {[%clk 0:00:17.3]} 36. Rh7
{[%clk 0:00:18.4]} 36... Ke8 {[%clk 0:00:17.7]} 37. g5 {[%clk 0:00:18.7]} 37...
Nxg5+ {[%clk 0:00:14.8]} 38. Bxg5 {[%clk 0:00:18.4]} 38... Rb3 {[%clk
0:00:15.7]} 39. Rh8+ {[%clk 0:00:15]} 39... Kf7 {[%clk 0:00:15.2]} 40. Bd2
{[%clk 0:00:11.8]} 40... Rxa3 {[%clk 0:00:15.1]} 41. Ra8 {[%clk 0:00:12.1]}
41... b4 {[%clk 0:00:15.2]} 42. Ke2 {[%clk 0:00:11]} 42... bxc3 {[%clk
0:00:15.2]} 43. Bc1 {[%clk 0:00:11.5]} 43... Ra2+ {[%clk 0:00:15.3]} 44. Kd3
{[%clk 0:00:11]} 44... Ra1 {[%clk 0:00:14.8]} 45. Kc2 {[%clk 0:00:08.5]} 45...
a3 {[%clk 0:00:15.2]} 46. g4 {[%clk 0:00:07.9]} 46... a2 {[%clk 0:00:15.2]} 47.
Ra7+ {[%clk 0:00:07.9]} 47... Kg6 {[%clk 0:00:15.1]} 48. Ra6 {[%clk 0:00:08.2]}
48... Kf6 {[%clk 0:00:10]} 49. g5+ {[%clk 0:00:06.3]} 49... Kf5 {[%clk
0:00:10.3]} 50. g6 {[%clk 0:00:06.2]} 50... Kxg6 {[%clk 0:00:10.4]} 51. d5
{[%clk 0:00:06.9]} 51... Kf5 {[%clk 0:00:09.5]} 52. dxe6 {[%clk 0:00:07.3]}
52... Kxe6 {[%clk 0:00:10.4]} 53. Bf4 {[%clk 0:00:04.1]} 53... Rf1 {[%clk
0:00:10.2]} 54. Rxd6+ {[%clk 0:00:02.2]} 54... Kf5 {[%clk 0:00:10.3]} 55. Ra6
{[%clk 0:00:02]} 55... a1=Q {[%clk 0:00:10.3]} 56. Rxa1 {[%clk 0:00:02]} 56...
Rxa1 {[%clk 0:00:11.2]} 0-1

[Event "Late-Titled-Tuesday-Blitz-March-12-2024"]
[Site "Chess.com"]
[Date "2024.03.12"]
[Round "4"]
[White "ahkashefi2800"]
[Black "AccioChess"]
[Result "0-1"]
[WhiteElo "2599"]
[BlackElo "2442"]
[TimeControl "180+1"]
[EndTime "14:38:42 PDT"]
[Termination "AccioChess won on time"]

1. c4 {[%clk 0:03:00.9]} 1... e5 {[%clk 0:02:57.5]} 2. Nc3 {[%clk 0:03:00.7]}
2... Nf6 {[%clk 0:02:57.6]} 3. g3 {[%clk 0:03:00.4]} 3... d5 {[%clk 0:02:57.8]}
4. cxd5 {[%clk 0:02:59.7]} 4... Nxd5 {[%clk 0:02:58.7]} 5. Bg2 {[%clk
0:03:00.1]} 5... Nb6 {[%clk 0:02:59.3]} 6. Nf3 {[%clk 0:02:59.1]} 6... Nc6
{[%clk 0:02:58.9]} 7. O-O {[%clk 0:02:58.3]} 7... Bd6 {[%clk 0:02:59]} 8. d3
{[%clk 0:02:55.8]} 8... O-O {[%clk 0:02:59]} 9. a3 {[%clk 0:02:46.9]} 9... a5
{[%clk 0:02:56.5]} 10. Rb1 {[%clk 0:02:42.7]} 10... Be6 {[%clk 0:02:48.4]} 11.
Ng5 {[%clk 0:02:36.3]} 11... Bd7 {[%clk 0:02:47.9]} 12. Nge4 {[%clk 0:02:16.2]}
12... Be7 {[%clk 0:02:39.7]} 13. Be3 {[%clk 0:02:11.2]} 13... Nd4 {[%clk
0:02:39.3]} 14. f4 {[%clk 0:02:06]} 14... Nf5 {[%clk 0:02:11.9]} 15. Bxb6 {[%clk
0:01:43.7]} 15... cxb6 {[%clk 0:02:12.8]} 16. Qd2 {[%clk 0:01:33.1]} 16... exf4
{[%clk 0:02:08.7]} 17. Rxf4 {[%clk 0:01:30.2]} 17... Nd4 {[%clk 0:02:03.8]} 18.
Rbf1 {[%clk 0:01:22.2]} 18... Bc6 {[%clk 0:01:54.6]} 19. e3 {[%clk 0:01:14.4]}
19... Nb3 {[%clk 0:01:20.8]} 20. Qd1 {[%clk 0:01:07.6]} 20... Nc5 {[%clk
0:01:18.4]} 21. Nxc5 {[%clk 0:00:59.5]} 21... Bxc5 {[%clk 0:01:17.7]} 22. d4
{[%clk 0:00:59.2]} 22... Bd6 {[%clk 0:01:08.9]} 23. R4f2 {[%clk 0:00:55.7]}
23... b5 {[%clk 0:01:02.8]} 24. Bxc6 {[%clk 0:00:39.7]} 24... bxc6 {[%clk
0:01:03.7]} 25. Qb3 {[%clk 0:00:36.9]} 25... Qe7 {[%clk 0:01:00.9]} 26. e4
{[%clk 0:00:25.9]} 26... Bc7 {[%clk 0:00:54.6]} 27. e5 {[%clk 0:00:24.3]} 27...
Bb6 {[%clk 0:00:49.5]} 28. Ne2 {[%clk 0:00:22.7]} 28... c5 {[%clk 0:00:42.8]}
29. Qxb5 {[%clk 0:00:20.3]} 29... Rab8 {[%clk 0:00:42.4]} 30. Nf4 {[%clk
0:00:06.5]} 30... cxd4 {[%clk 0:00:37.5]} 31. Nd5 {[%clk 0:00:06.6]} 31... Qxe5
{[%clk 0:00:31.9]} 32. Rf5 {[%clk 0:00:06.8]} 32... d3+ {[%clk 0:00:20.4]} 33.
Kg2 {[%clk 0:00:02.2]} 33... Qe4+ {[%clk 0:00:19.9]} 34. R1f3 {[%clk 0:00:01.1]}
34... d2 {[%clk 0:00:13.6]} 35. Nc3 {[%clk 0:00:01]} 35... Qd4 {[%clk
0:00:11.2]} 36. Qf1 {[%clk 0:00:01.3]} 36... f6 {[%clk 0:00:05]} 37. Qd1 {[%clk
0:00:01.5]} 37... Rbd8 {[%clk 0:00:04.4]} 38. R5f4 {[%clk 0:00:02]} 38... Qd6
{[%clk 0:00:04]} 39. Qb3+ {[%clk 0:00:02.2]} 39... Kh8 {[%clk 0:00:03.6]} 40.
Rf1 {[%clk 0:00:02.7]} 40... Rfe8 {[%clk 0:00:03.7]} 41. Kh3 {[%clk 0:00:02.2]}
41... Qd7+ {[%clk 0:00:03.4]} 42. g4 {[%clk 0:00:02.1]} 42... Qd3+ {[%clk
0:00:02.9]} 43. R4f3 {[%clk 0:00:02.3]} 43... Re3 {[%clk 0:00:02.8]} 44. Qd1
{[%clk 0:00:02.1]} 44... Rxf3+ {[%clk 0:00:02.7]} 45. Rxf3 {[%clk 0:00:02.5]}
45... Qd6 {[%clk 0:00:02.9]} 46. Kg2 {[%clk 0:00:02.9]} 46... Bc7 {[%clk
0:00:03.2]} 47. Rh3 {[%clk 0:00:03.3]} 47... g6 {[%clk 0:00:03.1]} 48. Rg3
{[%clk 0:00:02.6]} 48... Kg7 {[%clk 0:00:03.1]} 49. Kh3 {[%clk 0:00:02.9]} 49...
Qc6 {[%clk 0:00:02.4]} 50. Rf3 {[%clk 0:00:03.2]} 50... Qd7 {[%clk 0:00:02.8]}
51. Rf2 {[%clk 0:00:02.8]} 51... Be5 {[%clk 0:00:03.3]} 52. Rf1 {[%clk
0:00:02.8]} 52... Qd3+ {[%clk 0:00:03.5]} 53. Qf3 {[%clk 0:00:03.1]} 53... Qxf3+
{[%clk 0:00:03.6]} 54. Rxf3 {[%clk 0:00:03.5]} 54... Bxc3 {[%clk 0:00:04.3]} 0-1

[Event "Late-Titled-Tuesday-Blitz-March-12-2024"]
[Site "Chess.com"]
[Date "2024.03.12"]
[Round "4"]
[White "DavidGavrilescu18"]
[Black "newyorkmouse"]
[Result "1-0"]
[WhiteElo "2751"]
[BlackElo "2570"]
[TimeControl "180+1"]
[EndTime "14:38:43 PDT"]
[Termination "DavidGavrilescu18 won by checkmate"]

1. e4 {[%clk 0:02:59.9]} 1... b6 {[%clk 0:03:00]} 2. d4 {[%clk 0:02:58.8]} 2...
Bb7 {[%clk 0:03:00.7]} 3. Bd3 {[%clk 0:02:59.3]} 3... f5 {[%clk 0:03:01]} 4.
exf5 {[%clk 0:02:58.1]} 4... Bxg2 {[%clk 0:03:01.9]} 5. Qh5+ {[%clk 0:02:56.7]}
5... g6 {[%clk 0:03:02.6]} 6. fxg6 {[%clk 0:02:57.3]} 6... Bg7 {[%clk
0:03:03.3]} 7. gxh7+ {[%clk 0:01:51.6]} 7... Kf8 {[%clk 0:03:03.2]} 8. hxg8=Q+
{[%clk 0:01:40.2]} 8... Kxg8 {[%clk 0:03:04.1]} 9. Qg4 {[%clk 0:01:33]} 9...
Bxh1 {[%clk 0:03:03.8]} 10. Nc3 {[%clk 0:01:32.8]} 10... Nc6 {[%clk 0:02:56.8]}
11. Be3 {[%clk 0:01:29.5]} 11... e6 {[%clk 0:02:53.6]} 12. O-O-O {[%clk
0:01:23.7]} 12... Qh4 {[%clk 0:02:52.1]} 13. Qe2 {[%clk 0:01:18.5]} 13... Rf8
{[%clk 0:02:47.7]} 14. Bc4 {[%clk 0:01:05.8]} 14... Qxh2 {[%clk 0:02:35.1]} 15.
d5 {[%clk 0:01:03.4]} 15... Na5 {[%clk 0:02:35.5]} 16. dxe6 {[%clk 0:01:03]}
16... Nxc4 {[%clk 0:02:21.2]} 17. Qxc4 {[%clk 0:01:03.9]} 17... Rh4 {[%clk
0:02:15.6]} 18. Qb3 {[%clk 0:00:58.8]} 18... dxe6 {[%clk 0:02:11.6]} 19. Qxe6+
{[%clk 0:00:59.7]} 19... Kh8 {[%clk 0:02:12]} 20. Nge2 {[%clk 0:00:57.6]} 20...
Bf3 {[%clk 0:02:05.7]} 21. Qe7 {[%clk 0:00:51.4]} 21... Rg8 {[%clk 0:01:18.8]}
22. Re1 {[%clk 0:00:41.5]} 22... Rh7 {[%clk 0:01:08.4]} 23. Qe6 {[%clk
0:00:31.8]} 23... Qe5 {[%clk 0:01:03.7]} 24. Qc4 {[%clk 0:00:27.7]} 24... Rd8
{[%clk 0:00:43.3]} 25. Nf4 {[%clk 0:00:25.7]} 25... Qd6 {[%clk 0:00:35.9]} 26.
b3 {[%clk 0:00:13.4]} 26... Qf6 {[%clk 0:00:21.8]} 27. Bd2 {[%clk 0:00:11]}
27... b5 {[%clk 0:00:14.5]} 28. Qxc7 {[%clk 0:00:09.4]} 28... Rf8 {[%clk
0:00:03.5]} 29. Rg1 {[%clk 0:00:07.7]} 29... b4 {[%clk 0:00:03.4]} 30. Ng6+
{[%clk 0:00:07.8]} 30... Kg8 {[%clk 0:00:04.1]} 31. Qc4+ {[%clk 0:00:07.2]}
31... Rf7 {[%clk 0:00:03.9]} 32. Qc8+ {[%clk 0:00:04.2]} 32... Rf8 {[%clk
0:00:04.2]} 33. Nxf8 {[%clk 0:00:04.6]} 33... bxc3 {[%clk 0:00:04.4]} 34. Nxh7+
{[%clk 0:00:03.8]} 34... Kxh7 {[%clk 0:00:04.2]} 35. Qh3+ {[%clk 0:00:03.4]}
35... Kg8 {[%clk 0:00:03.6]} 36. Be3 {[%clk 0:00:03.9]} 36... Qe7 {[%clk
0:00:02.4]} 37. Qxf3 {[%clk 0:00:03.3]} 37... Qa3+ {[%clk 0:00:02.4]} 38. Kd1
{[%clk 0:00:03.1]} 38... Qxa2 {[%clk 0:00:02.9]} 39. Qd5+ {[%clk 0:00:02.9]}
39... Kh7 {[%clk 0:00:02]} 40. Qh5+ {[%clk 0:00:03.5]} 40... Kg8 {[%clk
0:00:02.6]} 41. Qe8+ {[%clk 0:00:04.1]} 41... Kh7 {[%clk 0:00:03.1]} 42. Qe4+
{[%clk 0:00:04.7]} 42... Kg8 {[%clk 0:00:03.4]} 43. Ke2 {[%clk 0:00:05.2]} 43...
Qa6+ {[%clk 0:00:03]} 44. Qc4+ {[%clk 0:00:05.9]} 44... Qxc4+ {[%clk 0:00:03]}
45. bxc4 {[%clk 0:00:06.8]} 45... Kf7 {[%clk 0:00:03.9]} 46. Kd3 {[%clk
0:00:07.7]} 46... Bf8 {[%clk 0:00:03.9]} 47. Ra1 {[%clk 0:00:07.9]} 47... a5
{[%clk 0:00:04.1]} 48. Rxa5 {[%clk 0:00:08.2]} 48... Kg6 {[%clk 0:00:04.4]} 49.
Ra7 {[%clk 0:00:08.8]} 49... Kf5 {[%clk 0:00:02.7]} 50. Ra6 {[%clk 0:00:09.6]}
50... Be7 {[%clk 0:00:02.4]} 51. Ra7 {[%clk 0:00:09.7]} 51... Bf6 {[%clk
0:00:01.4]} 52. Rf7 {[%clk 0:00:10.3]} 52... Ke6 {[%clk 0:00:01.8]} 53. Rxf6+
{[%clk 0:00:11.2]} 53... Ke5 {[%clk 0:00:02.4]} 54. Kxc3 {[%clk 0:00:12.1]}
54... Ke4 {[%clk 0:00:02.5]} 55. Re6+ {[%clk 0:00:11.1]} 55... Kf3 {[%clk
0:00:03]} 56. Re8 {[%clk 0:00:11.7]} 56... Ke2 {[%clk 0:00:03.4]} 57. c5 {[%clk
0:00:12.6]} 57... Kd1 {[%clk 0:00:04.1]} 58. c6 {[%clk 0:00:13.5]} 58... Ke2
{[%clk 0:00:04.5]} 59. c7 {[%clk 0:00:14]} 59... Kd1 {[%clk 0:00:05.2]} 60. c8=Q
{[%clk 0:00:14.5]} 60... Ke2 {[%clk 0:00:05.7]} 61. Qg4+ {[%clk 0:00:14.3]}
61... Kf1 {[%clk 0:00:05.7]} 62. Rg8 {[%clk 0:00:12.2]} 62... Ke1 {[%clk
0:00:05.9]} 63. Bd2+ {[%clk 0:00:12.5]} 63... Kf1 {[%clk 0:00:06.1]} 64. Qg2+
{[%clk 0:00:11.5]} 64... Ke2 {[%clk 0:00:07]} 65. f4+ {[%clk 0:00:11.6]} 65...
Kd1 {[%clk 0:00:06.8]} 66. Qf1# {[%clk 0:00:11.9]} 1-0

[Event "Late-Titled-Tuesday-Blitz-March-12-2024"]
[Site "Chess.com"]
[Date "2024.03.12"]
[Round "4"]
[White "Cuchulin"]
[Black "Fjal"]
[Result "0-1"]
[WhiteElo "2026"]
[BlackElo "2313"]
[TimeControl "180+1"]
[EndTime "14:38:48 PDT"]
[Termination "Fjal won by resignation"]

1. d4 {[%clk 0:02:59.5]} 1... d6 {[%clk 0:02:38.2]} 2. Bf4 {[%clk 0:02:58.7]}
2... Nd7 {[%clk 0:02:36.7]} 3. Nf3 {[%clk 0:02:57.4]} 3... g6 {[%clk 0:02:36.3]}
4. Nc3 {[%clk 0:02:56.1]} 4... Bg7 {[%clk 0:02:37.2]} 5. e4 {[%clk 0:02:55.9]}
5... e5 {[%clk 0:02:37]} 6. dxe5 {[%clk 0:02:55]} 6... dxe5 {[%clk 0:02:37.9]}
7. Be3 {[%clk 0:02:54.3]} 7... c6 {[%clk 0:02:37.8]} 8. Qd2 {[%clk 0:02:54.5]}
8... Ngf6 {[%clk 0:02:34.4]} 9. O-O-O {[%clk 0:02:54.6]} 9... Qa5 {[%clk
0:02:33.9]} 10. Bc4 {[%clk 0:02:51.4]} 10... b5 {[%clk 0:02:30.9]} 11. Bxf7+
{[%clk 0:02:44]} 11... Kxf7 {[%clk 0:02:28.3]} 12. Ng5+ {[%clk 0:02:44.5]} 12...
Ke8 {[%clk 0:01:41.7]} 13. Qd6 {[%clk 0:02:41.7]} 13... Qd8 {[%clk 0:01:08.4]}
14. Ne6 {[%clk 0:02:30.7]} 14... Qe7 {[%clk 0:01:08]} 15. Nc7+ {[%clk
0:02:26.2]} 15... Kf7 {[%clk 0:01:06.4]} 16. Nxa8 {[%clk 0:02:20.5]} 16... Qxd6
{[%clk 0:00:58.5]} 17. Rxd6 {[%clk 0:02:21.4]} 17... Ke7 {[%clk 0:00:59.2]} 18.
Rhd1 {[%clk 0:02:20.1]} 18... Bb7 {[%clk 0:00:53.9]} 19. Nc7 {[%clk 0:02:18.5]}
19... Rc8 {[%clk 0:00:48.7]} 20. N7xb5 {[%clk 0:02:06.5]} 20... cxb5 {[%clk
0:00:46.1]} 21. Nxb5 {[%clk 0:02:05]} 21... Bxe4 {[%clk 0:00:38.7]} 22. Nc3
{[%clk 0:01:52.6]} 22... Bxg2 {[%clk 0:00:18.7]} 23. Bg5 {[%clk 0:01:52.3]}
23... Rc7 {[%clk 0:00:18.7]} 24. f4 {[%clk 0:01:35.1]} 24... exf4 {[%clk
0:00:14.2]} 25. R6d2 {[%clk 0:01:29.5]} 25... Bf3 {[%clk 0:00:13.7]} 26. Re1+
{[%clk 0:01:29.2]} 26... Kf7 {[%clk 0:00:14.4]} 27. Bxf4 {[%clk 0:01:27.6]}
27... Rb7 {[%clk 0:00:08.6]} 28. Bd6 {[%clk 0:01:22.7]} 28... Bf8 {[%clk
0:00:07.8]} 29. Bxf8 {[%clk 0:01:20]} 29... Nxf8 {[%clk 0:00:08.4]} 30. b3
{[%clk 0:01:12.1]} 30... h6 {[%clk 0:00:06.7]} 31. Rd6 {[%clk 0:01:07.9]} 31...
N8h7 {[%clk 0:00:06.6]} 32. Rf1 {[%clk 0:01:06.7]} 32... Bg2 {[%clk 0:00:05.4]}
33. Rf2 {[%clk 0:01:06.6]} 33... Rc7 {[%clk 0:00:06]} 34. Kb2 {[%clk 0:01:00.9]}
34... Bc6 {[%clk 0:00:05.3]} 35. a4 {[%clk 0:00:56.9]} 35... Ke7 {[%clk
0:00:05.4]} 36. Rd1 {[%clk 0:00:50.6]} 36... Ng5 {[%clk 0:00:05.9]} 37. Re1+
{[%clk 0:00:50.6]} 37... Kf7 {[%clk 0:00:06.4]} 38. Ref1 {[%clk 0:00:50.6]}
38... Nh7 {[%clk 0:00:06]} 39. b4 {[%clk 0:00:49.2]} 39... Kg7 {[%clk
0:00:06.7]} 40. b5 {[%clk 0:00:49.5]} 40... Bb7 {[%clk 0:00:07.1]} 41. Kb3
{[%clk 0:00:46.9]} 41... Ne4 {[%clk 0:00:07.7]} 42. Nxe4 {[%clk 0:00:46.1]}
42... Bxe4 {[%clk 0:00:08.6]} 43. Kb4 {[%clk 0:00:44.2]} 43... Ng5 {[%clk
0:00:08.8]} 44. c4 {[%clk 0:00:43.9]} 44... Bd3 {[%clk 0:00:09.4]} 45. Rc1
{[%clk 0:00:43]} 45... Ne4 {[%clk 0:00:09.8]} 46. Rf3 {[%clk 0:00:42.3]} 46...
Rd7 {[%clk 0:00:09.4]} 47. a5 {[%clk 0:00:38.2]} 47... g5 {[%clk 0:00:08.8]} 48.
b6 {[%clk 0:00:37.6]} 48... axb6 {[%clk 0:00:08.7]} 49. axb6 {[%clk 0:00:37.5]}
49... g4 {[%clk 0:00:09.6]} 50. Rf4 {[%clk 0:00:34.1]} 50... h5 {[%clk
0:00:08.2]} 51. Re1 {[%clk 0:00:23.8]} 51... Nf6 {[%clk 0:00:06.2]} 52. c5
{[%clk 0:00:20.1]} 52... Nd5+ {[%clk 0:00:05.7]} 53. Ka5 {[%clk 0:00:20.4]}
53... Nxf4 {[%clk 0:00:06.6]} 54. c6 {[%clk 0:00:20.8]} 54... Rd5+ {[%clk
0:00:06.8]} 55. Kb4 {[%clk 0:00:20.1]} 55... Rb5+ {[%clk 0:00:07]} 56. Kc3
{[%clk 0:00:20.3]} 56... Rxb6 {[%clk 0:00:07.9]} 57. Kd4 {[%clk 0:00:12.3]}
57... Rxc6 {[%clk 0:00:08.5]} 58. Ra1 {[%clk 0:00:09.6]} 58... Rf6 {[%clk
0:00:08.9]} 59. Ke3 {[%clk 0:00:08.2]} 59... Kg6 {[%clk 0:00:09]} 60. Ra5 {[%clk
0:00:07.5]} 60... Bc4 {[%clk 0:00:08.9]} 61. Rb5 {[%clk 0:00:07.2]} 61... Bf7
{[%clk 0:00:09.4]} 62. Ra5 {[%clk 0:00:06.8]} 62... Nd5+ {[%clk 0:00:10.3]} 63.
Ke4 {[%clk 0:00:06.3]} 63... h4 {[%clk 0:00:11.2]} 64. Rxd5 {[%clk 0:00:05]}
64... Bxd5+ {[%clk 0:00:12.1]} 65. Kxd5 {[%clk 0:00:04.7]} 65... g3 {[%clk
0:00:13]} 0-1